bitfinex/quotes_BTCUSD_20250927
["timestamp","ask_amount","ask_price","bid_price","bid_amount"]
[1758982759301,7.09843274,109640.0,109630.0,0.06238653]
[1758982760075,7.09815274,109640.0,109630.0,0.06434653]
[1758982762182,7.11246478,109640.0,109630.0,0.06434653]
[1758982764643,6.82718478,109640.0,109630.0,0.06434653]
[1758982765086,7.11048478,109640.0,109630.0,0.06748653]
[1758982765285,6.75367889,109640.0,109630.0,0.06748653]
[1758982765413,7.11048478,109640.0,109630.0,0.06748653]
[1758982769487,7.09617274,109640.0,109630.0,0.06748653]
[1758982772437,7.11048463,109640.0,109630.0,0.06748653]
[1758982773038,7.11246463,109640.0,109630.0,0.06748653]
[1758982773236,7.11246463,109640.0,109630.0,0.06434653]
[1758982775326,7.11048463,109640.0,109630.0,0.06748653]
[1758982775527,6.82520463,109640.0,109630.0,0.06748653]
[1758982775949,7.11048463,109640.0,109630.0,0.06748653]
[1758982777262,6.82520463,109640.0,109630.0,0.06748653]
[1758982777482,7.11048463,109640.0,109630.0,0.06748653]
[1758982780039,6.75363874,109640.0,109630.0,0.06748653]
[1758982780263,6.75561874,109640.0,109630.0,0.06748653]
[1758982780959,6.75363874,109640.0,109630.0,0.06748653]
[1758982782210,6.73932685,109640.0,109630.0,0.06748653]
[1758982784880,6.74130685,109640.0,109630.0,0.06748653]
[1758982785083,6.75561874,109640.0,109630.0,0.06434653]
[1758982785305,6.74130685,109640.0,109630.0,0.06434653]
[1758982785643,7.09168389,109640.0,109630.0,0.06434653]
[1758982785843,7.0981103,109640.0,109630.0,0.06434653]
[1758982786051,7.0981103,109640.0,109630.0,0.06238653]
[1758982788322,7.11242219,109640.0,109630.0,0.06238653]
[1758982790569,7.11242269,109640.0,109630.0,0.06238653]
[1758982791823,7.11242269,109640.0,109630.0,0.06453653]
[1758982793311,7.11242269,109640.0,109630.0,0.06238653]
[1758982794760,6.94228763,109640.0,109630.0,0.06238653]
[1758982797890,6.94456763,109640.0,109630.0,0.06238653]
[1758982798325,7.0332791,109640.0,109630.0,0.06238653]
[1758982800534,6.7480391,109640.0,109630.0,0.06238653]
[1758982801012,5.94145585,109640.0,109630.0,0.06777653]
[1758982801218,6.94042763,109640.0,109630.0,0.06777653]
[1758982802895,6.65506763,109640.0,109630.0,0.06777653]
[1758982803099,6.94042763,109640.0,109630.0,0.06777653]
[1758982805953,6.94240763,109640.0,109630.0,0.06453653]
[1758982806159,6.94240763,109640.0,109630.0,0.06238653]
[1758982808896,6.65704763,109640.0,109630.0,0.06442653]
[1758982809072,6.94240763,109640.0,109630.0,0.06749653]
[1758982809275,6.65704763,109640.0,109630.0,0.06749653]
[1758982809505,6.94240763,109640.0,109630.0,0.06749653]
[1758982810419,6.94046763,109640.0,109630.0,0.06749653]
[1758982811607,6.94244763,109640.0,109630.0,0.06749653]
[1758982813862,6.65704763,109640.0,109630.0,0.06749653]
[1758982814062,6.94244763,109640.0,109630.0,0.06749653]
[1758982814458,6.94244763,109640.0,109630.0,0.06442653]
[1758982816660,6.76399455,109640.0,109630.0,0.06442653]
[1758982817091,6.54409182,109640.0,109630.0,0.06442653]
[1758982819490,6.25869182,109640.0,109630.0,0.06442653]
[1758982819700,6.54409182,109640.0,109630.0,0.06442653]
[1758982821620,6.25869182,109640.0,109630.0,0.06442653]
[1758982821852,6.54409182,109640.0,109630.0,0.06442653]
[1758982837828,6.54409182,109640.0,109630.0,0.06238653]
[1758982838458,6.00893312,109640.0,109630.0,0.06452653]
[1758982838666,6.54409182,109640.0,109630.0,0.06238653]
[1758982841176,6.54409182,109640.0,109630.0,0.06452653]
[1758982841617,6.54409182,109640.0,109630.0,0.06238653]
[1758982846752,6.59979502,109640.0,109630.0,0.06238653]
[1758982846958,6.86737437,109640.0,109630.0,0.06238653]
[1758982847212,6.86737437,109640.0,109630.0,0.05916884]
[1758982847414,6.81395117,109640.0,109630.0,0.05916884]
[1758982847638,6.59120836,109640.0,109630.0,0.05916884]
[1758982847854,6.40417417,109640.0,109630.0,0.05916884]
[1758982849342,6.43059615,109640.0,109630.0,0.05916884]
[1758982857394,6.42831615,109640.0,109630.0,0.05916884]
[1758982857964,6.43059615,109640.0,109630.0,0.05916884]
[1758982858180,6.43059615,109640.0,109630.0,0.04952884]
[1758982858601,6.41628426,109640.0,109630.0,0.04952884]
[1758982861436,6.41632426,109640.0,109630.0,0.04952884]
[1758982861663,6.43063623,109640.0,109630.0,0.04952884]
[1758982862411,6.5193477,109640.0,109630.0,0.04952884]
[1758982862822,6.49292572,109640.0,109630.0,0.04952884]
[1758982863806,6.20748572,109640.0,109630.0,0.04952884]
[1758982863941,6.40189425,109640.0,109630.0,0.04952884]
[1758982865821,6.11451425,109640.0,109630.0,0.05462884]
[1758982866029,6.40186425,109640.0,109630.0,0.05160884]
[1758982867182,5.5991262,109640.0,109630.0,0.05160884]
[1758982867407,6.40186425,109640.0,109630.0,0.05160884]
[1758982867624,6.40186425,109640.0,109630.0,0.04952884]
[1758982870134,6.38755228,109640.0,109630.0,0.04952884]
[1758982873130,6.38984228,109640.0,109630.0,0.04952884]
[1758982873309,6.3990067,109640.0,109630.0,0.04952884]
[1758982873523,6.3967167,109640.0,109630.0,0.04952884]
[1758982874552,6.1113167,109640.0,109630.0,0.04952884]
[1758982874767,6.3966767,109640.0,109630.0,0.04952884]
[1758982874968,6.41098867,109640.0,109630.0,0.04952884]
[1758982875442,6.1113167,109640.0,109630.0,0.05168884]
[1758982875617,6.38751228,109640.0,109630.0,0.05168884]
[1758982877486,6.10215228,109640.0,109630.0,0.05168884]
[1758982877699,6.38751228,109640.0,109630.0,0.05168884]
[1758982877906,6.38747228,109640.0,109630.0,0.05168884]
[1758982878325,6.40178425,109640.0,109630.0,0.05168884]
[1758982878642,6.31263238,109640.0,109630.0,0.05168884]
[1758982881526,6.02731238,109640.0,109630.0,0.05168884]
[1758982881736,6.31263238,109640.0,109630.0,0.05168884]
[1758982882582,6.3946623,109640.0,109630.0,0.05168884]
[1758982884796,6.31263238,109640.0,109630.0,0.05168884]
[1758982885675,6.29832041,109640.0,109630.0,0.05168884]
[1758982886735,6.29832041,109640.0,109630.0,0.04659294]
[1758982886957,6.29832041,109640.0,109630.0,0.04443294]
[1758982888244,6.29332041,109640.0,109630.0,0.04443294]
[1758982888668,6.30763238,109640.0,109630.0,0.04443294]
[1758982890841,6.30763224,109640.0,109630.0,0.04443294]
[1758982893710,6.36099772,109640.0,109630.0,0.04443294]
[1758982898285,6.30763224,109640.0,109630.0,0.04443294]
[1758982904598,6.02231224,109640.0,109630.0,0.04443294]
[1758982904820,6.30759224,109640.0,109630.0,0.04443294]
[1758982910858,6.02231224,109640.0,109630.0,0.04443294]
[1758982911004,6.30759224,109640.0,109630.0,0.04443294]
[1758982912289,6.02231224,109640.0,109630.0,0.04657294]
[1758982912487,6.30759224,109640.0,109630.0,0.04657294]
[1758982913115,6.02231224,109640.0,109630.0,0.04657294]
[1758982913297,6.30759224,109640.0,109630.0,0.04657294]
[1758982914047,6.02231224,109640.0,109630.0,0.04657294]
[1758982914260,6.30759224,109640.0,109630.0,0.04657294]
[1758982914612,6.30759109,109640.0,109630.0,0.04657294]
[1758982917888,6.12925545,109640.0,109630.0,0.04657294]
[1758982918116,5.84397545,109640.0,109630.0,0.04657294]
[1758982918316,6.12925545,109640.0,109630.0,0.04657294]
[1758982923925,5.84397545,109640.0,109630.0,0.04657294]
[1758982924172,6.12925545,109640.0,109630.0,0.04952294]
[1758982924370,6.12730545,109640.0,109630.0,0.04952294]
[1758982925781,5.84400545,109640.0,109630.0,0.04657294]
[1758982925978,6.12928545,109640.0,109630.0,0.04657294]
[1758982931260,5.93621068,109640.0,109630.0,0.04657294]
[1758982931459,8.93621068,109640.0,109630.0,0.04657294]
[1758982931854,8.65093068,109640.0,109630.0,0.04657294]
[1758982932062,8.93621068,109640.0,109630.0,0.04657294]
[1758982932268,8.93621068,109640.0,109630.0,0.05472523]
[1758982932269,8.29215759,109640.0,109630.0,0.05472523]
[1758982932471,8.57743759,109640.0,109630.0,0.05472523]
[1758982933089,8.57743759,109640.0,109630.0,0.04973294]
[1758982933731,8.93621068,109640.0,109630.0,0.04657294]
[1758982935866,8.93621068,109640.0,109630.0,0.04443294]
[1758982938627,8.7577905,109640.0,109630.0,0.04443294]
[1758982945200,9.0253735,109640.0,109630.0,0.04443294]
[1758982954733,8.82864686,109640.0,109630.0,0.04443294]
[1758982961001,8.82864692,109640.0,109630.0,0.04443294]
[1758982968531,8.02589792,109640.0,109630.0,0.04443294]
[1758982968733,8.82864692,109640.0,109630.0,0.04443294]
[1758982975112,8.54336692,109640.0,109630.0,0.04443294]
[1758982975334,8.82860692,109640.0,109630.0,0.04443294]
[1758982975646,8.54336692,109640.0,109630.0,0.04643294]
[1758982975859,8.82860692,109640.0,109630.0,0.04643294]
[1758982987766,8.82860692,109640.0,109630.0,0.04443294]
[1758982987982,8.83088692,109640.0,109630.0,0.04443294]
[1758982990911,8.82860692,109640.0,109630.0,0.04443294]
[1758982991315,8.65826324,109640.0,109630.0,0.04443294]
[1758983000742,8.57139674,109640.0,109630.0,0.04443294]
[1758983001152,8.62336244,109640.0,109630.0,0.04443294]
[1758983004060,8.57139674,109640.0,109630.0,0.04443294]
[1758983004496,8.28615674,109640.0,109630.0,0.04443294]
[1758983004696,8.57135674,109640.0,109630.0,0.04443294]
[1758983006392,8.56907674,109640.0,109630.0,0.04443294]
[1758983025003,8.28387674,109640.0,109630.0,0.04443294]
[1758983025220,8.56907674,109640.0,109630.0,0.04443294]
[1758983031778,8.37892895,109640.0,109630.0,0.04443294]
[1758983033026,8.17548912,109640.0,109630.0,0.04443294]
[1758983034456,7.89028912,109640.0,109630.0,0.04443294]
[1758983034703,8.17548767,109640.0,109630.0,0.04443294]
[1758983040486,8.17776767,109640.0,109630.0,0.04443294]
[1758983041053,8.17548767,109640.0,109630.0,0.04443294]
[1758983041490,8.1611757,109640.0,109630.0,0.03012109]
[1758983043576,8.1634557,109640.0,109630.0,0.03012109]
[1758983044399,8.17776783,109640.0,109630.0,0.03012109]
[1758983044747,8.1634557,109640.0,109630.0,0.03012109]
[1758983046381,8.1855609,109640.0,109630.0,0.03012109]
[1758983048077,8.19987303,109640.0,109630.0,0.03012109]
[1758983048881,8.19759303,109640.0,109630.0,0.03012109]
[1758983053111,7.17668533,109640.0,109630.0,0.03012109]
[1758983053363,8.17544783,109640.0,109630.0,0.03012109]
[1758983055496,8.1611357,109640.0,109630.0,0.03012109]
[1758983058563,8.17544783,109640.0,109630.0,0.03012109]
[1758983062578,8.26465655,109640.0,109630.0,0.03012109]
[1758983067540,8.33720867,109640.0,109630.0,0.03012109]
[1758983067947,8.32289654,109640.0,109630.0,0.03012109]
[1758983070465,8.33720867,109640.0,109630.0,0.03012109]
[1758983070889,8.26465655,109640.0,109630.0,0.03012109]
[1758983071470,7.97949655,109640.0,109630.0,0.03012109]
[1758983071695,8.26461655,109640.0,109630.0,0.03012109]
[1758983072727,7.97949655,109640.0,109630.0,0.03012109]
[1758983072938,8.26461655,109640.0,109630.0,0.03012109]
[1758983074692,8.35332802,109640.0,109630.0,0.03012109]
[1758983074930,8.33901589,109640.0,109630.0,0.03012109]
[1758983076700,8.25030442,109640.0,109630.0,0.03012109]
[1758983078193,8.26461655,109640.0,109630.0,0.03012109]
[1758983085673,8.25030442,109640.0,109630.0,0.03012109]
[1758983088572,8.26461655,109640.0,109630.0,0.03012109]
[1758983092392,8.26457655,109640.0,109630.0,0.03012109]
[1758983095328,8.26457787,109640.0,109630.0,0.03012109]
[1758983095961,8.26457787,109640.0,109630.0,0.03227109]
[1758983097549,8.25026574,109640.0,109630.0,0.03227109]
[1758983097842,8.25022574,109640.0,109630.0,0.03227109]
[1758983098064,8.04063246,109640.0,109630.0,0.03227109]
[1758983098220,7.75559246,109640.0,109630.0,0.03227109]
[1758983098446,8.04063246,109640.0,109630.0,0.03227109]
[1758983099424,8.04063246,109640.0,109630.0,0.03549109]
[1758983100549,8.05494448,109640.0,109630.0,0.03549109]
[1758983104170,7.76990448,109640.0,109630.0,0.03549109]
[1758983104436,8.05494448,109640.0,109630.0,0.03549109]
[1758983104656,7.76990448,109640.0,109630.0,0.03549109]
[1758983104850,8.05494448,109640.0,109630.0,0.03549109]
[1758983105774,8.04063246,109640.0,109630.0,0.03549109]
[1758983108403,7.75559246,109640.0,109630.0,0.03549109]
[1758983108603,8.05494426,109640.0,109630.0,0.03549109]
[1758983109205,8.05494426,109640.0,109630.0,0.03227109]
[1758983110460,7.25213304,109640.0,109630.0,0.03227109]
[1758983110685,7.78734052,109640.0,109630.0,0.03227109]
[1758983111486,8.05494426,109640.0,109630.0,0.03227109]
[1758983115026,7.76990426,109640.0,109630.0,0.03227109]
[1758983115173,8.04059246,109640.0,109630.0,0.03227109]
[1758983116238,8.05490449,109640.0,109630.0,0.03227109]
[1758983117688,8.05490518,109640.0,109630.0,0.03227109]
[1758983118737,8.05490522,109640.0,109630.0,0.03227109]
[1758983120363,7.88257279,109640.0,109630.0,0.03227109]
[1758983120562,7.61496905,109640.0,109630.0,0.03227109]
[1758983121268,7.88257279,109640.0,109630.0,0.03227109]
[1758983123385,7.87757279,109640.0,109630.0,0.03227109]
[1758983124670,7.78835061,109640.0,109630.0,0.03227109]
[1758983125676,7.77403858,109640.0,109630.0,0.03227109]
[1758983126020,7.77205858,109640.0,109630.0,0.03548109]
[1758983126848,7.77403858,109640.0,109630.0,0.03548109]
[1758983127331,7.06044954,109640.0,109630.0,0.03548109]
[1758983127515,7.77403858,109640.0,109630.0,0.03548109]
[1758983127916,7.77403858,109640.0,109630.0,0.03227109]
[1758983128591,7.78835054,109640.0,109630.0,0.03227109]
[1758983130247,7.78835071,109640.0,109630.0,0.03227109]
[1758983133582,7.50335071,109640.0,109630.0,0.03227109]
[1758983133790,7.07278167,109640.0,109630.0,0.03548109]
[1758983133945,7.42957619,109640.0,109630.0,0.03548109]
[1758983135519,7.41526423,109640.0,109630.0,0.03548109]
[1758983138611,7.42957599,109640.0,109630.0,0.03548109]
[1758983140744,7.22335991,109640.0,109630.0,0.03548109]
[1758983140955,10.25081247,109640.0,109630.0,0.03548109]
[1758983141163,9.89401795,109640.0,109630.0,0.03548109]
[1758983141330,10.25081247,109640.0,109630.0,0.03548109]
[1758983145604,10.23650071,109640.0,109630.0,0.03548109]
[1758983146341,10.23848071,109640.0,109630.0,0.03548109]
[1758983148574,10.25279244,109640.0,109630.0,0.03548109]
[1758983150921,10.25279244,109640.0,109630.0,0.03227109]
[1758983155421,10.23848071,109640.0,109630.0,0.03227109]
[1758983158534,10.25279245,109640.0,109630.0,0.03227109]
[1758983162344,10.25278966,109640.0,109630.0,0.03227109]
[1758983165617,10.23847792,109640.0,109630.0,0.03227109]
[1758983167848,9.8816834,109640.0,109630.0,0.03227109]
[1758983168161,10.23847792,109640.0,109630.0,0.03227109]
[1758983168702,10.25278966,109640.0,109630.0,0.03227109]
[1758983171616,10.246366,109640.0,109630.0,0.03227109]
[1758983171817,10.25279069,109640.0,109630.0,0.03227109]
[1758983173219,10.25079069,109640.0,109630.0,0.03227109]
[1758983173640,10.25279069,109640.0,109630.0,0.03227109]
[1758983174900,10.25267069,109640.0,109630.0,0.03227109]
[1758983175556,10.23835895,109640.0,109630.0,0.03227109]
[1758983177204,10.23835895,109640.0,109630.0,0.03012109]
[1758983178464,10.25267069,109640.0,109630.0,0.03012109]
[1758983184601,10.43100239,109640.0,109630.0,0.03012109]
[1758983185744,10.10459038,109640.0,109630.0,0.03012109]
[1758983185959,10.09027864,109640.0,109630.0,0.03012109]
[1758983187629,10.43027864,109640.0,109630.0,0.03012109]
[1758983188451,10.44459038,109640.0,109630.0,0.03012109]
[1758983195027,10.71215349,109640.0,109630.0,0.03012109]
[1758983195257,10.44459038,109640.0,109630.0,0.03012109]
[1758983195455,10.43027864,109640.0,109630.0,0.03012109]
[1758983195795,10.4279631,109640.0,109630.0,0.03012109]
[1758983198282,10.20841632,109640.0,109630.0,0.03012109]
[1758983198525,10.22272816,109640.0,109630.0,0.03012109]
[1758983198852,10.40514333,109640.0,109630.0,0.03012109]
[1758983203091,10.18647032,109640.0,109630.0,0.03012109]
[1758983205783,10.17215848,109640.0,109630.0,0.03012109]
[1758983207942,10.17207848,109640.0,109630.0,0.03012109]
[1758983208641,10.18639032,109640.0,109630.0,0.03012109]
[1758983214807,10.18867032,109640.0,109630.0,0.03012109]
[1758983216574,10.17435848,109640.0,109630.0,0.03012109]
[1758983218163,10.17435848,109640.0,109630.0,0.08012109]
[1758983219655,10.18867032,109640.0,109630.0,0.08012109]
[1758983220110,10.18639032,109640.0,109630.0,0.08012109]
[1758983220417,10.17996563,109640.0,109630.0,0.08012109]
[1758983220619,10.18638897,109640.0,109630.0,0.08012109]
[1758983225443,10.17207713,109640.0,109630.0,0.08012109]
[1758983227628,9.97229224,109640.0,109630.0,0.08012109]
[1758983228576,9.98660408,109640.0,109630.0,0.08012109]
[1758983229056,9.98888408,109640.0,109630.0,0.08012109]
[1758983229491,10.25644719,109640.0,109630.0,0.08012109]
[1758983229699,9.98888408,109640.0,109630.0,0.08012109]
[1758983231811,10.25640719,109640.0,109630.0,0.08012109]
[1758983232032,10.25412719,109640.0,109630.0,0.08012109]
[1758983233322,9.98656408,109640.0,109630.0,0.08012109]
[1758983234739,9.97225224,109640.0,109630.0,0.08012109]
[1758983236784,10.03299011,109640.0,109630.0,0.08012109]
[1758983236993,10.30283322,109640.0,109630.0,0.08012109]
[1758983237769,10.32192021,109640.0,109630.0,0.08012109]
[1758983241164,10.03716021,109640.0,109630.0,0.08012109]
[1758983241373,10.32192021,109640.0,109630.0,0.08012109]
[1758983241696,10.34834219,109640.0,109630.0,0.08012109]
[1758983243118,10.28760432,109640.0,109630.0,0.08012109]
[1758983244010,10.00284432,109640.0,109630.0,0.08012109]
[1758983244188,9.81717413,109640.0,109630.0,0.08012109]
[1758983244589,10.10193413,109640.0,109630.0,0.08012109]
[1758983245131,9.81717413,109640.0,109630.0,0.08012109]
[1758983245309,10.10193413,109640.0,109630.0,0.08012109]
[1758983246555,10.01285756,109640.0,109630.0,0.08012109]
[1758983247343,10.08840534,109640.0,109630.0,0.08012109]
[1758983247967,10.08608534,109640.0,109630.0,0.08012109]
[1758983248170,10.01053756,109640.0,109630.0,0.08012109]
[1758983253632,9.99622572,109640.0,109630.0,0.08012109]
[1758983256340,10.01053771,109640.0,109630.0,0.08012109]
[1758983256982,9.99622572,109640.0,109630.0,0.08012109]
[1758983259819,10.01053771,109640.0,109630.0,0.08012109]
[1758983260023,9.72581771,109640.0,109630.0,0.08012109]
[1758983260229,10.01053771,109640.0,109630.0,0.08012109]
[1758983260803,10.04756389,109640.0,109630.0,0.08012109]
[1758983267459,10.01053771,109640.0,109630.0,0.08012109]
[1758983271684,9.81097327,109640.0,109630.0,0.08012109]
[1758983279252,9.79666128,109640.0,109630.0,0.08012109]
[1758983281116,9.62167492,109640.0,109630.0,0.08012109]
[1758983282072,9.63598691,109640.0,109630.0,0.08012109]
[1758983283152,9.60948493,109640.0,109630.0,0.08012109]
[1758983285880,9.60948493,109640.0,109630.0,0.08223109]
[1758983286063,9.6094843,109640.0,109630.0,0.08223109]
[1758983289342,9.59517231,109640.0,109630.0,0.08223109]
[1758983292047,9.6094843,109640.0,109630.0,0.08223109]
[1758983292697,9.3248443,109640.0,109630.0,0.08223109]
[1758983292899,9.6094843,109640.0,109630.0,0.08223109]
[1758983294437,9.3248443,109640.0,109630.0,0.08223109]
[1758983294683,9.6094843,109640.0,109630.0,0.08223109]
[1758983295672,9.44740094,109640.0,109630.0,0.08223109]
[1758983295871,9.43308895,109640.0,109630.0,0.08223109]
[1758983296137,9.43304895,109640.0,109630.0,0.08223109]
[1758983298971,9.44736085,109640.0,109630.0,0.08223109]
[1758983300401,9.44736064,109640.0,109630.0,0.08223109]
[1758983306737,9.26890552,109640.0,109630.0,0.08223109]
[1758983307342,9.25459362,109640.0,109630.0,0.08223109]
[1758983309930,9.25459304,109640.0,109630.0,0.08223109]
[1758983310490,9.26890494,109640.0,109630.0,0.08223109]
[1758983317265,9.25459304,109640.0,109630.0,0.08223109]
[1758983320176,9.26890494,109640.0,109630.0,0.08223109]
[1758983321218,9.2689051,109640.0,109630.0,0.08223109]
[1758983327508,9.2545932,109640.0,109630.0,0.08223109]
[1758983330256,9.2689051,109640.0,109630.0,0.08223109]
[1758983339038,9.2545932,109640.0,109630.0,0.08223109]
[1758983340919,8.43285556,109640.0,109630.0,0.0940242]
[1758983341159,9.2524932,109640.0,109630.0,0.08545109]
[1758983341768,9.26680493,109640.0,109630.0,0.08545109]
[1758983345208,9.2524932,109640.0,109630.0,0.08545109]
[1758983346027,8.9680132,109640.0,109630.0,0.08545109]
[1758983346234,9.2524932,109640.0,109630.0,0.08545109]
[1758983346607,9.25248896,109640.0,109630.0,0.08545109]
[1758983347017,9.05228018,109640.0,109630.0,0.08545109]
[1758983348703,9.06659191,109640.0,109630.0,0.08545109]
[1758983353718,8.83687573,109640.0,109630.0,0.08545109]
[1758983355761,8.83885573,109640.0,109630.0,0.08545109]
[1758983355968,8.83885573,109640.0,109630.0,0.08223109]
[1758983357741,8.824544,109640.0,109630.0,0.08223109]
[1758983360357,8.83885567,109640.0,109630.0,0.08223109]
[1758983365417,8.824544,109640.0,109630.0,0.08223109]
[1758983366784,8.64611734,109640.0,109630.0,0.08223109]
[1758983368407,8.66042901,109640.0,109630.0,0.08223109]
[1758983379736,8.66030901,109640.0,109630.0,0.08223109]
[1758983379932,8.37594901,109640.0,109630.0,0.08223109]
[1758983380177,8.66030901,109640.0,109630.0,0.08526109]
[1758983380319,8.37594901,109640.0,109630.0,0.08526109]
[1758983380524,8.66030901,109640.0,109630.0,0.08526109]
[1758983380971,8.64599734,109640.0,109630.0,0.08526109]
[1758983381605,8.36163734,109640.0,109630.0,0.08526109]
[1758983381814,8.64599734,109640.0,109630.0,0.08526109]
[1758983383590,8.66030902,109640.0,109630.0,0.08526109]
[1758983386923,8.66030902,109640.0,109630.0,0.08223109]
[1758983387495,8.64599734,109640.0,109630.0,0.08223109]
[1758983390510,8.66030902,109640.0,109630.0,0.08223109]
[1758983392142,8.48652183,109640.0,109630.0,0.08223109]
[1758983395235,8.48652183,109640.0,109630.0,0.08012109]
[1758983395644,8.47221015,109640.0,109630.0,0.08012109]
[1758983396051,8.47221015,109640.0,109630.0,0.08214109]
[1758983398777,8.48652183,109640.0,109630.0,0.08214109]
[1758983407007,8.48652183,109640.0,109630.0,0.08012109]
[1758983408612,8.47221015,109640.0,109630.0,0.08012109]
[1758983409420,8.11547917,109640.0,109630.0,0.08012109]
[1758983409850,8.47221015,109640.0,109630.0,0.08012109]
[1758983411188,8.48652175,109640.0,109630.0,0.08012109]
[1758983411958,8.84553273,109640.0,109630.0,0.08012109]
[1758983412477,8.64259122,109640.0,109630.0,0.08012109]
[1758983412703,8.66901389,109640.0,109630.0,0.08012109]
[1758983415497,8.65470229,109640.0,109630.0,0.08012109]
[1758983418560,8.66901397,109640.0,109630.0,0.08012109]
[1758983421037,8.48147253,109640.0,109630.0,0.08012109]
[1758983421249,8.19711253,109640.0,109630.0,0.08012109]
[1758983421452,8.48139253,109640.0,109630.0,0.08012109]
[1758983422696,8.19711253,109640.0,109630.0,0.08012109]
[1758983422846,8.48139253,109640.0,109630.0,0.08012109]
[1758983424395,8.27055543,109640.0,109630.0,0.08012109]
[1758983424552,7.98627543,109640.0,109630.0,0.08012109]
[1758983424911,8.27055543,109640.0,109630.0,0.08012109]
[1758983428607,8.35990742,109640.0,109630.0,0.08012109]
[1758983429014,8.07562742,109640.0,109630.0,0.08012109]
[1758983429189,8.35990742,109640.0,109630.0,0.08012109]
[1758983432573,8.34559574,109640.0,109630.0,0.08012109]
[1758983434689,8.43430721,109640.0,109630.0,0.08012109]
[1758983435276,8.44861923,109640.0,109630.0,0.08012109]
[1758983439254,8.16433923,109640.0,109630.0,0.08012109]
[1758983439413,8.44861923,109640.0,109630.0,0.08012109]
[1758983439867,8.35990776,109640.0,109630.0,0.08012109]
[1758983441250,8.34559574,109640.0,109630.0,0.08012109]
[1758983441594,8.31917307,109640.0,109630.0,0.08012109]
[1758983442932,8.31689307,109640.0,109630.0,0.08012109]
[1758983443854,8.03261307,109640.0,109630.0,0.08012109]
[1758983444100,8.04692509,109640.0,109630.0,0.08012109]
[1758983444311,8.33120509,109640.0,109630.0,0.08012109]
[1758983445788,8.04692509,109640.0,109630.0,0.08012109]
[1758983445929,8.33120509,109640.0,109630.0,0.08012109]
[1758983447797,8.04692509,109640.0,109630.0,0.08012109]
[1758983448345,8.33120509,109640.0,109630.0,0.08012109]
[1758983448783,8.04692509,109640.0,109630.0,0.08012109]
[1758983448987,8.33120509,109640.0,109630.0,0.08012109]
[1758983449956,8.31689307,109640.0,109630.0,0.08012109]
[1758983451730,8.03261307,109640.0,109630.0,0.08012109]
[1758983451915,8.31689307,109640.0,109630.0,0.08012109]
[1758983452465,8.03261307,109640.0,109630.0,0.08012109]
[1758983452665,8.33120514,109640.0,109630.0,0.08012109]
[1758983456709,8.33120799,109640.0,109630.0,0.08012109]
[1758983462383,8.06360334,109640.0,109630.0,0.08012109]
[1758983463966,8.06360334,109640.0,109630.0,0.08208109]
[1758983465222,8.06360334,109640.0,109630.0,0.08529109]
[1758983466793,7.77932334,109640.0,109630.0,0.08529109]
[1758983466950,8.06356334,109640.0,109630.0,0.08529109]
[1758983475337,7.77932334,109640.0,109630.0,0.08529109]
[1758983475546,7.77734334,109640.0,109630.0,0.0938602]
[1758983475748,8.06158334,109640.0,109630.0,0.0938602]
[1758983476024,8.06158334,109640.0,109630.0,0.08529109]
[1758983481643,8.06356334,109640.0,109630.0,0.08529109]
[1758983483534,8.06356334,109640.0,109630.0,0.08208109]
[1758983488836,7.88509776,109640.0,109630.0,0.08208109]
[1758983493468,7.66109587,109640.0,109630.0,0.08208109]
[1758983497370,7.66082157,109640.0,109630.0,0.08208109]
[1758983504705,7.71800857,109640.0,109630.0,0.08208109]
[1758983511844,7.22092046,109640.0,109630.0,0.08208109]
[1758983512075,7.50516046,109640.0,109630.0,0.08208109]
[1758983512680,7.22092046,109640.0,109630.0,0.08208109]
[1758983512814,7.50516046,109640.0,109630.0,0.08208109]
[1758983514774,7.50516046,109640.0,109630.0,0.08012109]
[1758983524025,7.14841674,109640.0,109630.0,0.08012109]
[1758983524263,7.50516046,109640.0,109630.0,0.08012109]
[1758983543536,7.22092046,109640.0,109630.0,0.08012109]
[1758983543738,7.50516046,109640.0,109630.0,0.08012109]
[1758983544230,6.86417674,109640.0,109630.0,0.08220109]
[1758983544457,7.50516046,109640.0,109630.0,0.08220109]
[1758983550611,7.68354002,109640.0,109630.0,0.08220109]
[1758983559453,7.39930002,109640.0,109630.0,0.08220109]
[1758983559661,7.68354002,109640.0,109630.0,0.08220109]
[1758983562114,7.95110166,109640.0,109630.0,0.08220109]
[1758983573005,7.74368193,109640.0,109630.0,0.08220109]
[1758983579478,7.74368193,109640.0,109630.0,0.08012109]
[1758983591221,7.45944193,109640.0,109630.0,0.08012109]
[1758983591430,7.74368193,109640.0,109630.0,0.08223109]
[1758983592125,7.74368188,109640.0,109630.0,0.08223109]
[1758983593814,7.74368188,109640.0,109630.0,0.08012109]
[1758983595067,7.73725741,109640.0,109630.0,0.08012109]
[1758983595271,7.52383898,109640.0,109630.0,0.08012109]
[1758983595484,10.52383898,109640.0,109630.0,0.08012109]
[1758983604069,9.72115406,109640.0,109630.0,0.08012109]
[1758983604283,10.52383898,109640.0,109630.0,0.08207109]
[1758983604932,10.52383898,109640.0,109630.0,0.08012109]
[1758983609617,10.5238397,109640.0,109630.0,0.08012109]
[1758983612549,10.43474242,109640.0,109630.0,0.08012109]
[1758983614076,10.0779486,109640.0,109630.0,0.08012109]
[1758983624978,9.7937086,109640.0,109630.0,0.08012109]
[1758983625202,10.0779086,109640.0,109630.0,0.08514109]
[1758983626091,10.0779086,109640.0,109630.0,0.08207109]
[1758983632400,10.07790863,109640.0,109630.0,0.08207109]
[1758983634363,9.85932555,109640.0,109630.0,0.08207109]
[1758983634583,9.57314555,109640.0,109630.0,0.08207109]
[1758983634804,5.00442461,109640.0,109630.0,0.08530109]
[1758983635027,3.24254354,109640.0,109630.0,0.08530109]
[1758983635239,3.23611832,109640.0,109630.0,0.08530109]
[1758983635842,3.15980132,109640.0,109630.0,0.11275091]
[1758983636432,3.15780132,109640.0,109630.0,0.11275091]
[1758983636569,3.15880132,109640.0,109630.0,0.11475091]
[1758983637201,3.15780132,109640.0,109630.0,0.11475091]
[1758983637411,3.15780132,109640.0,109630.0,0.11575091]
[1758983638041,3.17211199,109640.0,109630.0,0.11575091]
[1758983638481,3.15780132,109640.0,109630.0,0.11575091]
[1758983641098,3.51459514,109640.0,109630.0,0.11575091]
[1758983641471,3.52890581,109640.0,109630.0,0.11575091]
[1758983645765,3.51459514,109640.0,109630.0,0.11575091]
[1758983646745,3.51657514,109640.0,109630.0,0.11575091]
[1758983649052,3.53088576,109640.0,109630.0,0.11575091]
[1758983652381,3.53088576,109640.0,109630.0,0.40023091]
[1758983653180,3.53088576,109640.0,109630.0,0.39700091]
[1758983653810,3.53088576,109640.0,109630.0,0.40019091]
[1758983655284,3.51657514,109640.0,109630.0,0.40019091]
[1758983658090,3.15978132,109640.0,109630.0,0.40019091]
[1758983658536,3.17409191,109640.0,109630.0,0.40019091]
[1758983661817,1.73596391,109640.0,109630.0,0.40019091]
[1758983662198,1.67290691,109640.0,109630.0,0.40019091]
[1758983662999,2.02970073,109640.0,109630.0,0.40019091]
[1758983666720,1.68970073,109640.0,109630.0,0.40019091]
[1758983672711,1.86788387,109640.0,109630.0,0.40019091]
[1758983680398,1.86788387,109640.0,109630.0,0.11571091]